[Event "Titled Tuesday Blitz December 27 Early 2022"]
[White "Rosh Jain"]
[Black "Jiganchine, Roman"]
[WhiteFideId "25789465"]
[BlackFideId "2603667"]
[WhiteElo "2248"]
[BlackElo "2205"]
[Result "0-1"]
[Round "08"]
[TimeControl "180+2"]
[Date "2022.12.27"]
[WhiteClock "0:00:01"]
[BlackClock "0:00:10"]

1. e4 {[%clk 0:02:51]}  c6 {[%clk 0:02:59]} 2. Nc3 {[%clk 0:02:48]}  d5 {[%clk 0:02:57]} 3. Nf3 {[%clk 0:02:48]}  dxe4 {[%clk 0:02:58]} 4. Nxe4 {[%clk 0:02:45]}  Nf6 {[%clk 0:02:58]} 5. Qe2 {[%clk 0:02:42]}  Nxe4 {[%clk 0:02:55]} 6. Qxe4 {[%clk 0:02:42]}  Qd5 {[%clk 0:02:54]} 7. Qxd5 {[%clk 0:02:39]}  cxd5 {[%clk 0:02:54]} 8. Bb5+ {[%clk 0:02:40]}  Bd7 {[%clk 0:02:54]} 9. Bxd7+ {[%clk 0:02:39]}  Nxd7 {[%clk 0:02:54]} 10. O-O {[%clk 0:02:39]}  e6 {[%clk 0:02:54]} 11. b3 {[%clk 0:02:37]}  Bd6 {[%clk 0:02:50]} 12. Bb2 {[%clk 0:02:35]}  O-O {[%clk 0:02:50]} 13. d3 {[%clk 0:02:32]}  b5 {[%clk 0:02:42]} 14. Rad1 {[%clk 0:02:27]}  Rac8 {[%clk 0:02:36]} 15. c4 {[%clk 0:02:18]}  bxc4 {[%clk 0:02:21]} 16. dxc4 {[%clk 0:02:15]}  Nb6 {[%clk 0:02:15]} 17. Bd4 {[%clk 0:01:59]}  Bc5 {[%clk 0:02:07]} 18. Bxc5 {[%clk 0:01:56]}  Rxc5 {[%clk 0:02:07]} 19. cxd5 {[%clk 0:01:57]}  Nxd5 {[%clk 0:02:05]} 20. Rd2 {[%clk 0:01:52]}  Rfc8 {[%clk 0:02:05]} 21. g3 {[%clk 0:01:42]}  h6 {[%clk 0:02:00]} 22. Kg2 {[%clk 0:01:41]}  g5 {[%clk 0:02:00]} 23. Rfd1 {[%clk 0:01:36]}  Kg7 {[%clk 0:01:59]} 24. Nd4 {[%clk 0:01:04]}  a6 {[%clk 0:01:52]} 25. Nf5+ {[%clk 0:00:56]}  Kh7 {[%clk 0:01:37]} 26. Nd6 {[%clk 0:00:52]}  R8c7 {[%clk 0:01:32]} 27. Nc4 {[%clk 0:00:48]}  Kg7 {[%clk 0:01:25]} 28. a3 {[%clk 0:00:37]}  a5 {[%clk 0:01:18]} 29. Rd3 {[%clk 0:00:14]}  a4 {[%clk 0:01:11]} 30. Nd2 {[%clk 0:00:14]}  Rc3 {[%clk 0:00:55]} 31. Rxc3 {[%clk 0:00:12]}  Rxc3 {[%clk 0:00:50]} 32. bxa4 {[%clk 0:00:13]}  Rxa3 {[%clk 0:00:49]} 33. Nc4 {[%clk 0:00:11]}  Rxa4 {[%clk 0:00:46]} 34. Ne5 {[%clk 0:00:11]}  Ra2 {[%clk 0:00:43]} 35. Kg1 {[%clk 0:00:10]}  h5 {[%clk 0:00:41]} 36. Rc1 {[%clk 0:00:08]}  Re2 {[%clk 0:00:36]} 37. Nf3 {[%clk 0:00:06]}  g4 {[%clk 0:00:32]} 38. Nd4 {[%clk 0:00:06]}  Rd2 {[%clk 0:00:31]} 39. Nb3 {[%clk 0:00:02]}  Rd3 {[%clk 0:00:30]} 40. Nc5 {[%clk 0:00:02]}  Rd4 {[%clk 0:00:27]} 41. Nb3 {[%clk 0:00:01]}  Re4 {[%clk 0:00:24]} 42. Nd2 {[%clk 0:00:01]}  Re2 {[%clk 0:00:23]} 43. Nb1 {[%clk 0:00:02]}  Rb2 {[%clk 0:00:19]} 44. Nc3 {[%clk 0:00:02]}  Nf6 {[%clk 0:00:16]} 45. Nd1 {[%clk 0:00:02]}  Rd2 {[%clk 0:00:16]} 46. Ne3 {[%clk 0:00:02]}  Re2 {[%clk 0:00:16]} 47. Rc2 {[%clk 0:00:02]}  Re1+ {[%clk 0:00:15]} 48. Kg2 {[%clk 0:00:02]}  Ra1 {[%clk 0:00:14]} 49. f3 {[%clk 0:00:02]}  Ra3 {[%clk 0:00:13]} 50. Re2 {[%clk 0:00:01]}  gxf3+ {[%clk 0:00:12]} 51. Kxf3 {[%clk 0:00:01]}  Nd5 {[%clk 0:00:12]} 52. Kf2 {[%clk 0:00:01]}  Rxe3 {[%clk 0:00:12]} 53. Rxe3 {[%clk 0:00:02]}  Nxe3 {[%clk 0:00:12]} 54. Kxe3 {[%clk 0:00:03]}  Kf6 {[%clk 0:00:11]} 55. h3 {[%clk 0:00:02]}  Ke5 {[%clk 0:00:11]} 56. Kf3 {[%clk 0:00:01]}  Kf5 {[%clk 0:00:11]} 57. Ke3 {[%clk 0:00:01]}  Kg5 {[%clk 0:00:11]} 58. Ke4 {[%clk 0:00:01]}  f6 {[%clk 0:00:10]} 59. h4+ {[%clk 0:00:01]}  Kg4 {[%clk 0:00:10]} 0-1


[Site "https://www.chess.com"]

[Event "Titled Tuesday Blitz December 27 Early 2022"]
[White "Royal, Shreyas"]
[Black "Szyszylo, Rafal"]
[WhiteFideId "448869"]
[BlackFideId "1109626"]
[WhiteElo "2438"]
[BlackElo "2091"]
[Result "1-0"]
[Round "08"]
[TimeControl "180+2"]
[Date "2022.12.27"]
[WhiteClock "0:00:02"]
[BlackClock "0:00:12"]

1. e4 {[%clk 0:03:00]}  d6 {[%clk 0:02:58]} 2. d4 {[%clk 0:02:59]}  Nf6 {[%clk 0:02:58]} 3. Nc3 {[%clk 0:02:59]}  g6 {[%clk 0:02:58]} 4. f4 {[%clk 0:02:59]}  Bg7 {[%clk 0:02:58]} 5. Nf3 {[%clk 0:02:59]}  O-O {[%clk 0:02:58]} 6. Bd3 {[%clk 0:02:59]}  Na6 {[%clk 0:02:58]} 7. O-O {[%clk 0:02:58]}  c5 {[%clk 0:02:58]} 8. d5 {[%clk 0:02:58]}  Bg4 {[%clk 0:02:58]} 9. h3 {[%clk 0:02:57]}  Bxf3 {[%clk 0:02:58]} 10. Qxf3 {[%clk 0:02:58]}  Nb4 {[%clk 0:02:54]} 11. Be3 {[%clk 0:02:52]}  c4 {[%clk 0:02:52]} 12. Bxc4 {[%clk 0:02:52]}  Nxc2 {[%clk 0:02:52]} 13. Rac1 {[%clk 0:02:53]}  Nxe3 {[%clk 0:02:51]} 14. Qxe3 {[%clk 0:02:54]}  Rc8 {[%clk 0:02:37]} 15. Bb3 {[%clk 0:02:51]}  Qb6 {[%clk 0:01:58]} 16. Qxb6 {[%clk 0:02:49]}  axb6 {[%clk 0:01:59]} 17. e5 {[%clk 0:02:36]}  Nd7 {[%clk 0:01:50]} 18. exd6 {[%clk 0:02:33]}  exd6 {[%clk 0:01:49]} 19. Nb5 {[%clk 0:02:33]}  Bxb2 {[%clk 0:01:40]} 20. Rb1 {[%clk 0:02:34]}  Bg7 {[%clk 0:01:29]} 21. Nxd6 {[%clk 0:02:34]}  Rb8 {[%clk 0:01:12]} 22. Bc4 {[%clk 0:02:28]}  Bd4+ {[%clk 0:01:06]} 23. Kh2 {[%clk 0:02:28]}  Bc5 {[%clk 0:01:06]} 24. Ne4 {[%clk 0:02:27]}  Bd4 {[%clk 0:00:45]} 25. Rfd1 {[%clk 0:02:24]}  Be3 {[%clk 0:00:43]} 26. Kg3 {[%clk 0:02:23]}  Rfe8 {[%clk 0:00:40]} 27. Kf3 {[%clk 0:02:22]}  f5 {[%clk 0:00:29]} 28. Nd6 {[%clk 0:02:21]}  Re7 {[%clk 0:00:28]} 29. Re1 {[%clk 0:02:13]}  b5 {[%clk 0:00:01]} 30. Bxb5 {[%clk 0:02:09]}  Nb6 {[%clk 0:00:01]} 31. Rxe3 {[%clk 0:02:07]}  Rxe3+ {[%clk 0:00:01]} 32. Kxe3 {[%clk 0:02:07]}  Nxd5+ {[%clk 0:00:01]} 33. Kf3 {[%clk 0:02:08]}  Nc3 {[%clk 0:00:01]} 34. Bc4+ {[%clk 0:02:08]}  Kg7 {[%clk 0:00:02]} 35. Rxb7+ {[%clk 0:02:09]}  Rxb7 {[%clk 0:00:01]} 36. Nxb7 {[%clk 0:02:10]}  Nxa2 {[%clk 0:00:02]} 37. Bxa2 {[%clk 0:02:09]}  h6 {[%clk 0:00:02]} 38. h4 {[%clk 0:02:09]}  g5 {[%clk 0:00:03]} 39. hxg5 {[%clk 0:02:10]}  hxg5 {[%clk 0:00:03]} 40. fxg5 {[%clk 0:02:11]}  Kg6 {[%clk 0:00:03]} 41. Kf4 {[%clk 0:02:11]}  Kh5 {[%clk 0:00:04]} 42. Kxf5 {[%clk 0:02:12]}  Kh4 {[%clk 0:00:04]} 43. g6 {[%clk 0:02:12]}  Kg3 {[%clk 0:00:05]} 44. g7 {[%clk 0:02:13]}  Kf2 {[%clk 0:00:06]} 45. g8=Q {[%clk 0:02:13]}  Kg1 {[%clk 0:00:07]} 46. g4 {[%clk 0:02:11]}  Kh1 {[%clk 0:00:08]} 47. g5 {[%clk 0:02:12]}  Kg1 {[%clk 0:00:09]} 48. g6 {[%clk 0:02:12]}  Kg2 {[%clk 0:00:10]} 49. g7 {[%clk 0:02:12]}  Kh3 {[%clk 0:00:11]} 50. Qh7+ {[%clk 0:02:11]}  Kg2 {[%clk 0:00:11]} 51. g8=Q+ {[%clk 0:02:11]}  Kf2 {[%clk 0:00:11]} 52. Qh2+ {[%clk 0:02:10]}  Ke3 {[%clk 0:00:12]} 53. Qe6+ {[%clk 0:02:10]}  Kd4 {[%clk 0:00:12]} 54. Qd2# {[%clk 0:00:02]} 1-0


[Site "https://www.chess.com"]

[Event "Titled Tuesday Blitz December 27 Early 2022"]
[White "Rustemov, Alexander"]
[Black "Demin, Vladimir"]
[WhiteFideId "4119002"]
[BlackFideId "4167457"]
[WhiteElo "2525"]
[BlackElo "2430"]
[Result "1/2-1/2"]
[Round "08"]
[TimeControl "180+2"]
[Date "2022.12.27"]
[WhiteClock "0:02:16"]
[BlackClock "0:02:44"]

1. d4 {[%clk 0:02:57]}  Nf6 {[%clk 0:02:58]} 2. c4 {[%clk 0:02:57]}  e5 {[%clk 0:02:58]} 3. dxe5 {[%clk 0:02:55]}  Ng4 {[%clk 0:02:58]} 4. Bf4 {[%clk 0:02:55]}  Bb4+ {[%clk 0:02:58]} 5. Nd2 {[%clk 0:02:55]}  d6 {[%clk 0:02:58]} 6. exd6 {[%clk 0:02:54]}  Qf6 {[%clk 0:02:58]} 7. e3 {[%clk 0:02:45]}  Qxb2 {[%clk 0:02:55]} 8. Nf3 {[%clk 0:02:39]}  Nc6 {[%clk 0:02:54]} 9. dxc7 {[%clk 0:02:30]}  Nge5 {[%clk 0:02:53]} 10. Nxe5 {[%clk 0:02:17]}  Bxd2+ {[%clk 0:02:46]} 11. Qxd2 {[%clk 0:02:16]}  Qxa1+ {[%clk 0:02:46]} 12. Qd1 {[%clk 0:02:17]}  Qc3+ {[%clk 0:02:45]} 13. Qd2 {[%clk 0:02:16]}  Qa1+ {[%clk 0:02:45]} 14. Qd1 {[%clk 0:02:16]}  Qc3+ {[%clk 0:02:44]} 15. Qd2 {[%clk 0:02:16]}  Qa1+ {[%clk 0:02:44]} 1/2-1/2


[Site "https://www.chess.com"]

[Event "Titled Tuesday Blitz December 27 Early 2022"]
[White "Sai Krishna G V"]
[Black "Timofeev, Artyom"]
[WhiteFideId "5028280"]
[BlackFideId "4140419"]
[WhiteElo "2384"]
[BlackElo "2567"]
[Result "1/2-1/2"]
[Round "08"]
[TimeControl "180+2"]
[Date "2022.12.27"]
[WhiteClock "0:00:15"]
[BlackClock "0:00:06"]

1. e4 {[%clk 0:03:00]}  c5 {[%clk 0:02:59]} 2. Nf3 {[%clk 0:03:00]}  Nc6 {[%clk 0:02:59]} 3. Nc3 {[%clk 0:03:00]}  d6 {[%clk 0:02:57]} 4. Bb5 {[%clk 0:02:55]}  Bd7 {[%clk 0:02:55]} 5. O-O {[%clk 0:02:55]}  Nf6 {[%clk 0:02:54]} 6. Re1 {[%clk 0:02:55]}  e5 {[%clk 0:02:53]} 7. d3 {[%clk 0:02:52]}  Be7 {[%clk 0:02:52]} 8. Bg5 {[%clk 0:02:52]}  O-O {[%clk 0:02:49]} 9. Bxf6 {[%clk 0:02:50]}  Bxf6 {[%clk 0:02:49]} 10. Nd5 {[%clk 0:02:51]}  g6 {[%clk 0:02:48]} 11. Nd2 {[%clk 0:02:43]}  Bg7 {[%clk 0:02:46]} 12. Nc4 {[%clk 0:02:43]}  Be6 {[%clk 0:02:46]} 13. Nce3 {[%clk 0:02:39]}  Nd4 {[%clk 0:02:45]} 14. Bc4 {[%clk 0:02:39]}  b5 {[%clk 0:02:45]} 15. Bb3 {[%clk 0:02:39]}  f5 {[%clk 0:02:39]} 16. exf5 {[%clk 0:02:36]}  gxf5 {[%clk 0:02:38]} 17. Nc3 {[%clk 0:02:26]}  Nxb3 {[%clk 0:02:31]} 18. axb3 {[%clk 0:02:27]}  f4 {[%clk 0:02:31]} 19. Nf1 {[%clk 0:02:26]}  a6 {[%clk 0:02:25]} 20. Qf3 {[%clk 0:02:20]}  d5 {[%clk 0:02:20]} 21. Re2 {[%clk 0:01:55]}  Qd6 {[%clk 0:02:18]} 22. Rae1 {[%clk 0:01:53]}  Rae8 {[%clk 0:02:16]} 23. Nd2 {[%clk 0:01:45]}  b4 {[%clk 0:02:09]} 24. Nd1 {[%clk 0:01:40]}  Bf5 {[%clk 0:02:09]} 25. Qh5 {[%clk 0:01:37]}  Bg6 {[%clk 0:02:08]} 26. Qh4 {[%clk 0:01:35]}  e4 {[%clk 0:02:06]} 27. dxe4 {[%clk 0:01:28]}  dxe4 {[%clk 0:02:06]} 28. Nc4 {[%clk 0:01:27]}  Qd7 {[%clk 0:01:53]} 29. Rd2 {[%clk 0:01:25]}  Qc7 {[%clk 0:01:41]} 30. Rd6 {[%clk 0:01:23]}  a5 {[%clk 0:01:34]} 31. Qg5 {[%clk 0:01:17]}  Rf5 {[%clk 0:01:26]} 32. Qh4 {[%clk 0:01:11]}  Rf7 {[%clk 0:01:18]} 33. Qg5 {[%clk 0:01:02]}  Rf5 {[%clk 0:01:02]} 34. Qh4 {[%clk 0:01:02]}  Bf7 {[%clk 0:00:47]} 35. Ra6 {[%clk 0:00:55]}  Bxc4 {[%clk 0:00:41]} 36. bxc4 {[%clk 0:00:56]}  e3 {[%clk 0:00:42]} 37. fxe3 {[%clk 0:00:41]}  fxe3 {[%clk 0:00:42]} 38. Nxe3 {[%clk 0:00:42]}  Rfe5 {[%clk 0:00:40]} 39. Qg3 {[%clk 0:00:37]}  Qe7 {[%clk 0:00:37]} 40. Kf2 {[%clk 0:00:37]}  Rf8+ {[%clk 0:00:31]} 41. Kg1 {[%clk 0:00:34]}  Rg5 {[%clk 0:00:26]} 42. Qd6 {[%clk 0:00:28]}  Qxd6 {[%clk 0:00:26]} 43. Rxd6 {[%clk 0:00:29]}  Bxb2 {[%clk 0:00:26]} 44. Nd5 {[%clk 0:00:25]}  a4 {[%clk 0:00:26]} 45. h4 {[%clk 0:00:21]}  Rg4 {[%clk 0:00:23]} 46. Re7 {[%clk 0:00:19]}  a3 {[%clk 0:00:22]} 47. Ra6 {[%clk 0:00:19]}  Rf7 {[%clk 0:00:18]} 48. Re8+ {[%clk 0:00:18]}  Kg7 {[%clk 0:00:18]} 49. Raa8 {[%clk 0:00:19]}  Rxh4 {[%clk 0:00:16]} 50. Rg8+ {[%clk 0:00:19]}  Kh6 {[%clk 0:00:16]} 51. g3 {[%clk 0:00:19]}  Rxc4 {[%clk 0:00:15]} 52. Ra6+ {[%clk 0:00:19]}  Kh5 {[%clk 0:00:13]} 53. Kg2 {[%clk 0:00:20]}  Bg7 {[%clk 0:00:08]} 54. Ne3 {[%clk 0:00:19]}  Rc3 {[%clk 0:00:07]} 55. g4+ {[%clk 0:00:19]}  Kg5 {[%clk 0:00:07]} 56. Nf5 {[%clk 0:00:17]}  Rxc2+ {[%clk 0:00:06]} 57. Kg3 {[%clk 0:00:17]}  a2 {[%clk 0:00:06]} 58. Nxg7 {[%clk 0:00:17]}  Rc3+ {[%clk 0:00:06]} 59. Kg2 {[%clk 0:00:17]}  Kxg4 {[%clk 0:00:07]} 60. Ne6+ {[%clk 0:00:15]}  Kf5 {[%clk 0:00:07]} 61. Nd8 {[%clk 0:00:12]}  Rd7 {[%clk 0:00:06]} 62. Rf8+ {[%clk 0:00:10]}  Ke4 {[%clk 0:00:05]} 63. Re6+ {[%clk 0:00:09]}  Kd3 {[%clk 0:00:05]} 64. Ra6 {[%clk 0:00:09]}  Kc4 {[%clk 0:00:04]} 65. Rxa2 {[%clk 0:00:09]}  b3 {[%clk 0:00:04]} 66. Raf2 {[%clk 0:00:09]}  Rc2 {[%clk 0:00:04]} 67. Rf4+ {[%clk 0:00:08]}  Kc3 {[%clk 0:00:04]} 68. Ne6 {[%clk 0:00:08]}  Rxf2+ {[%clk 0:00:04]} 69. Rxf2 {[%clk 0:00:09]}  Rd2 {[%clk 0:00:01]} 70. Nxc5 {[%clk 0:00:08]}  Rxf2+ {[%clk 0:00:01]} 71. Kxf2 {[%clk 0:00:09]}  b2 {[%clk 0:00:02]} 72. Na4+ {[%clk 0:00:10]}  Kb3 {[%clk 0:00:03]} 73. Nxb2 {[%clk 0:00:10]}  Kxb2 {[%clk 0:00:04]} 74. Kg3 {[%clk 0:00:11]}  Kc3 {[%clk 0:00:04]} 75. Kh4 {[%clk 0:00:12]}  Kd4 {[%clk 0:00:05]} 76. Kh5 {[%clk 0:00:13]}  Ke5 {[%clk 0:00:06]} 77. Kh6 {[%clk 0:00:14]}  Kf6 {[%clk 0:00:06]} 78. Kxh7 {[%clk 0:00:15]} 1/2-1/2


[Site "https://www.chess.com"]

[Event "Titled Tuesday Blitz December 27 Early 2022"]
[White "Samsonkin, Artiom"]
[Black "Baskakov, Egor"]
[WhiteFideId "13503111"]
[BlackFideId "24197866"]
[WhiteElo "2420"]
[BlackElo "2215"]
[Result "0-1"]
[Round "08"]
[TimeControl "180+2"]
[Date "2022.12.27"]
[WhiteClock "0:00:01"]
[BlackClock "0:00:17"]

1. e4 {[%clk 0:03:00]}  c5 {[%clk 0:02:57]} 2. Nc3 {[%clk 0:02:59]}  Nc6 {[%clk 0:02:57]} 3. Bb5 {[%clk 0:02:58]}  g6 {[%clk 0:02:56]} 4. Bxc6 {[%clk 0:02:55]}  dxc6 {[%clk 0:02:57]} 5. f4 {[%clk 0:02:55]}  Bg7 {[%clk 0:02:56]} 6. Nf3 {[%clk 0:02:56]}  Bg4 {[%clk 0:02:57]} 7. d3 {[%clk 0:02:54]}  e5 {[%clk 0:02:55]} 8. O-O {[%clk 0:02:46]}  exf4 {[%clk 0:02:54]} 9. Bxf4 {[%clk 0:02:43]}  Ne7 {[%clk 0:02:54]} 10. h3 {[%clk 0:02:36]}  Bxf3 {[%clk 0:02:54]} 11. Qxf3 {[%clk 0:02:37]}  O-O {[%clk 0:02:54]} 12. Qg3 {[%clk 0:02:35]}  Qd7 {[%clk 0:02:36]} 13. Rae1 {[%clk 0:02:28]}  b6 {[%clk 0:02:28]} 14. Be5 {[%clk 0:02:15]}  f6 {[%clk 0:02:18]} 15. Bf4 {[%clk 0:02:09]}  Rae8 {[%clk 0:02:19]} 16. h4 {[%clk 0:02:00]}  f5 {[%clk 0:02:18]} 17. Bd6 {[%clk 0:01:52]}  fxe4 {[%clk 0:02:09]} 18. dxe4 {[%clk 0:01:47]}  Rxf1+ {[%clk 0:02:02]} 19. Rxf1 {[%clk 0:01:46]}  Nc8 {[%clk 0:02:02]} 20. Bf4 {[%clk 0:01:34]}  Qd4+ {[%clk 0:01:51]} 21. Kh1 {[%clk 0:01:16]}  Qb4 {[%clk 0:01:40]} 22. e5 {[%clk 0:00:51]}  Ne7 {[%clk 0:01:36]} 23. h5 {[%clk 0:00:41]}  Rf8 {[%clk 0:01:31]} 24. Qg4 {[%clk 0:00:15]}  Qc4 {[%clk 0:01:18]} 25. Rf3 {[%clk 0:00:15]}  gxh5 {[%clk 0:01:15]} 26. Qg3 {[%clk 0:00:03]}  h4 {[%clk 0:00:59]} 27. Qg4 {[%clk 0:00:03]}  Ng6 {[%clk 0:00:59]} 28. b3 {[%clk 0:00:02]}  Qd4 {[%clk 0:00:42]} 29. Qe6+ {[%clk 0:00:01]}  Kh8 {[%clk 0:00:42]} 30. Be3 {[%clk 0:00:01]}  Qxe5 {[%clk 0:00:32]} 31. Qxe5 {[%clk 0:00:01]}  Bxe5 {[%clk 0:00:26]} 32. Rxf8+ {[%clk 0:00:02]}  Nxf8 {[%clk 0:00:27]} 33. Ne4 {[%clk 0:00:02]}  Ne6 {[%clk 0:00:25]} 34. Ng5 {[%clk 0:00:02]}  Nd8 {[%clk 0:00:14]} 35. Nf3 {[%clk 0:00:02]}  Bf6 {[%clk 0:00:15]} 36. Bg5 {[%clk 0:00:03]}  Kg7 {[%clk 0:00:14]} 37. Bxh4 {[%clk 0:00:03]}  Bxh4 {[%clk 0:00:14]} 38. Nxh4 {[%clk 0:00:04]}  Kf6 {[%clk 0:00:15]} 39. Nf3 {[%clk 0:00:05]}  Ne6 {[%clk 0:00:15]} 40. Kg1 {[%clk 0:00:05]}  Nd4 {[%clk 0:00:16]} 41. c3 {[%clk 0:00:05]}  Nxf3+ {[%clk 0:00:16]} 42. gxf3 {[%clk 0:00:05]}  Kf5 {[%clk 0:00:16]} 43. Kg2 {[%clk 0:00:06]}  Kf4 {[%clk 0:00:17]} 44. c4 {[%clk 0:00:01]}  h5 {[%clk 0:00:17]} 0-1


[Site "https://www.chess.com"]

[Event "Titled Tuesday Blitz December 27 Early 2022"]
[White "Samunenkov, Ihor"]
[Black "Grigorov, Grigor"]
[WhiteFideId "14187086"]
[BlackFideId "2907313"]
[WhiteElo "2501"]
[BlackElo "2510"]
[Result "1/2-1/2"]
[Round "08"]
[TimeControl "180+2"]
[Date "2022.12.27"]
[WhiteClock "0:00:09"]
[BlackClock "0:00:15"]

1. d4 {[%clk 0:02:42]}  Nf6 {[%clk 0:02:59]} 2. c4 {[%clk 0:02:42]}  e6 {[%clk 0:03:00]} 3. Nf3 {[%clk 0:02:42]}  b6 {[%clk 0:03:00]} 4. g3 {[%clk 0:02:43]}  Bb7 {[%clk 0:03:00]} 5. Bg2 {[%clk 0:02:43]}  Be7 {[%clk 0:03:00]} 6. O-O {[%clk 0:02:43]}  O-O {[%clk 0:03:01]} 7. Nc3 {[%clk 0:02:43]}  Ne4 {[%clk 0:03:01]} 8. Bd2 {[%clk 0:02:44]}  Bf6 {[%clk 0:03:00]} 9. Qc2 {[%clk 0:02:36]}  Nxd2 {[%clk 0:02:58]} 10. Qxd2 {[%clk 0:02:36]}  d6 {[%clk 0:02:58]} 11. e4 {[%clk 0:02:35]}  Nd7 {[%clk 0:02:58]} 12. h4 {[%clk 0:02:32]}  g6 {[%clk 0:02:55]} 13. h5 {[%clk 0:02:23]}  Bg7 {[%clk 0:02:54]} 14. hxg6 {[%clk 0:02:03]}  hxg6 {[%clk 0:02:55]} 15. d5 {[%clk 0:02:04]}  Qe7 {[%clk 0:02:47]} 16. Nd4 {[%clk 0:01:58]}  Bxd4 {[%clk 0:02:19]} 17. Qxd4 {[%clk 0:01:57]}  e5 {[%clk 0:02:18]} 18. Qd2 {[%clk 0:01:54]}  Kg7 {[%clk 0:02:18]} 19. Bh3 {[%clk 0:01:48]}  Rh8 {[%clk 0:02:15]} 20. Kg2 {[%clk 0:01:48]}  Nf6 {[%clk 0:01:48]} 21. Rh1 {[%clk 0:01:40]}  Bc8 {[%clk 0:01:48]} 22. Bxc8 {[%clk 0:01:38]}  Raxc8 {[%clk 0:01:47]} 23. Qg5 {[%clk 0:01:33]}  Nxd5 {[%clk 0:01:42]} 24. Qxe7 {[%clk 0:01:13]}  Nxe7 {[%clk 0:01:43]} 25. Rxh8 {[%clk 0:01:14]}  Kxh8 {[%clk 0:01:40]} 26. b3 {[%clk 0:01:07]}  Kg7 {[%clk 0:01:38]} 27. Rd1 {[%clk 0:01:04]}  f5 {[%clk 0:01:38]} 28. f3 {[%clk 0:01:02]}  Kf7 {[%clk 0:01:37]} 29. Nb5 {[%clk 0:01:01]}  a6 {[%clk 0:01:35]} 30. Nc3 {[%clk 0:01:02]}  Rh8 {[%clk 0:01:32]} 31. Nd5 {[%clk 0:00:59]}  Nxd5 {[%clk 0:01:32]} 32. cxd5 {[%clk 0:01:00]}  Ke7 {[%clk 0:01:29]} 33. Rc1 {[%clk 0:00:59]}  Kd7 {[%clk 0:01:29]} 34. b4 {[%clk 0:00:54]}  b5 {[%clk 0:01:19]} 35. a4 {[%clk 0:00:43]}  fxe4 {[%clk 0:01:09]} 36. fxe4 {[%clk 0:00:44]}  bxa4 {[%clk 0:01:08]} 37. Ra1 {[%clk 0:00:43]}  Rb8 {[%clk 0:01:02]} 38. Rxa4 {[%clk 0:00:43]}  Rb6 {[%clk 0:01:00]} 39. Kf3 {[%clk 0:00:43]}  Ke7 {[%clk 0:00:56]} 40. Kg4 {[%clk 0:00:38]}  Kf6 {[%clk 0:00:55]} 41. Kh4 {[%clk 0:00:36]}  c6 {[%clk 0:00:54]} 42. dxc6 {[%clk 0:00:32]}  Rxc6 {[%clk 0:00:55]} 43. Kg4 {[%clk 0:00:31]}  Rc4 {[%clk 0:00:48]} 44. Kf3 {[%clk 0:00:31]}  Ke6 {[%clk 0:00:38]} 45. Rxa6 {[%clk 0:00:29]}  Rxb4 {[%clk 0:00:37]} 46. Rc6 {[%clk 0:00:18]}  Rd4 {[%clk 0:00:36]} 47. Ra6 {[%clk 0:00:17]}  Kf6 {[%clk 0:00:36]} 48. Rb6 {[%clk 0:00:16]}  Kg5 {[%clk 0:00:36]} 49. Rb3 {[%clk 0:00:15]}  Rd1 {[%clk 0:00:33]} 50. Ra3 {[%clk 0:00:13]}  Rf1+ {[%clk 0:00:33]} 51. Kg2 {[%clk 0:00:13]}  Rd1 {[%clk 0:00:29]} 52. Kf3 {[%clk 0:00:12]}  Rd4 {[%clk 0:00:29]} 53. Rb3 {[%clk 0:00:10]}  Kh5 {[%clk 0:00:28]} 54. Ra3 {[%clk 0:00:10]}  g5 {[%clk 0:00:26]} 55. Rb3 {[%clk 0:00:10]}  g4+ {[%clk 0:00:26]} 56. Ke3 {[%clk 0:00:11]}  Rd1 {[%clk 0:00:22]} 57. Rb8 {[%clk 0:00:09]}  Re1+ {[%clk 0:00:18]} 58. Kd3 {[%clk 0:00:10]}  Rd1+ {[%clk 0:00:16]} 59. Ke2 {[%clk 0:00:08]}  Rd4 {[%clk 0:00:14]} 60. Rh8+ {[%clk 0:00:07]}  Kg5 {[%clk 0:00:14]} 61. Rg8+ {[%clk 0:00:07]}  Kh5 {[%clk 0:00:14]} 62. Rh8+ {[%clk 0:00:08]}  Kg5 {[%clk 0:00:14]} 63. Rg8+ {[%clk 0:00:08]}  Kh5 {[%clk 0:00:15]} 64. Rh8+ {[%clk 0:00:09]} 1/2-1/2


[Site "https://www.chess.com"]

[Event "Titled Tuesday Blitz December 27 Early 2022"]
[White "Serpi, Andrea"]
[Black "Khoroshev, Nikita"]
[WhiteFideId "2847499"]
[BlackFideId "14200287"]
[WhiteElo "2191"]
[BlackElo "2336"]
[Result "0-1"]
[Round "08"]
[TimeControl "180+2"]
[Date "2022.12.27"]
[WhiteClock "0:01:16"]
[BlackClock "0:01:46"]

1. e4 {[%clk 0:03:00]}  e6 {[%clk 0:03:00]} 2. d4 {[%clk 0:03:00]}  d5 {[%clk 0:03:00]} 3. exd5 {[%clk 0:03:01]}  exd5 {[%clk 0:03:01]} 4. Nf3 {[%clk 0:03:00]}  Nc6 {[%clk 0:03:02]} 5. Bb5 {[%clk 0:02:58]}  Bd6 {[%clk 0:03:01]} 6. c4 {[%clk 0:02:57]}  dxc4 {[%clk 0:03:02]} 7. d5 {[%clk 0:02:57]}  a6 {[%clk 0:03:01]} 8. Ba4 {[%clk 0:02:58]}  b5 {[%clk 0:03:00]} 9. dxc6 {[%clk 0:02:58]}  bxa4 {[%clk 0:03:01]} 10. O-O {[%clk 0:02:58]}  Ne7 {[%clk 0:03:01]} 11. Nbd2 {[%clk 0:02:58]}  O-O {[%clk 0:03:00]} 12. Nxc4 {[%clk 0:02:56]}  Nxc6 {[%clk 0:03:00]} 13. Qxa4 {[%clk 0:02:56]}  Bb7 {[%clk 0:02:55]} 14. Rd1 {[%clk 0:02:53]}  Qf6 {[%clk 0:02:54]} 15. Nxd6 {[%clk 0:02:41]}  cxd6 {[%clk 0:02:55]} 16. Be3 {[%clk 0:02:38]}  Rac8 {[%clk 0:02:49]} 17. Bf4 {[%clk 0:02:06]}  Ne5 {[%clk 0:02:01]} 18. Nxe5 {[%clk 0:01:19]}  dxe5 {[%clk 0:01:58]} 19. Bg3 {[%clk 0:01:19]}  Qe6 {[%clk 0:01:46]} 20. Rd7 {[%clk 0:01:16]}  Bc6 {[%clk 0:01:46]} 0-1


[Site "https://www.chess.com"]